fUST/lending_fUST_20250221
["ID","MTS","AMOUNT","RATE_DAILY","PERIOD"]
[353866821,1740101455775,-822.5,0.00014931,2]
[353866822,1740101455784,-1573.39,0.00014931,2]
[353866823,1740101455794,-2936.2,0.00014931,2]
[353866824,1740101455803,-648.94,0.00014931,2]
[353866825,1740101455813,-1582.51,0.00014931,2]
[353866826,1740101455823,-500.0,0.00014931,2]
[353866827,1740101455832,-1821.05,0.00014931,2]
[353866828,1740101455842,-500.0,0.00014931,2]
[353866829,1740101455852,-1944.03,0.00014931,2]
[353866830,1740101455862,-573.26,0.00014931,2]
[353866831,1740101455872,-500.0,0.00014931,2]
[353866832,1740101455882,-500.0,0.00014931,2]
[353866833,1740101455893,-1419.81,0.00014931,2]
[353866834,1740101455903,-14118.77,0.00014931,2]
[353866835,1740101455912,-697.58,0.00014931,2]
[353866836,1740101455922,-500.0,0.00014931,2]
[353866837,1740101455931,-4476.95,0.00014931,2]
[353866838,1740101455941,-1855.42,0.00014931,2]
[353866839,1740101455951,-500.0,0.00014931,2]
[353866840,1740101455960,-1561.66,0.00014931,2]
[353866841,1740101455970,-500.0,0.00014931,2]
[353866842,1740101455980,-1412.3,0.00014931,2]
[353866843,1740101455989,-5338.73,0.00014931,2]
[353866844,1740101456000,-2773.95,0.00014931,2]
[353866845,1740101456010,-818.79,0.00014931,2]
[353866846,1740101456020,-2229.92,0.00014931,2]
[353866847,1740101456030,-1020.454338,0.00014934,2]
[353866848,1740101456040,-435.8335621,0.00014954,2]
[353866849,1740101456049,-420.0,0.00014983,2]
[353866850,1740101456059,-388.06377795,0.00015013,2]
[353866851,1740101456069,-500.0,0.00015013,2]
[353866852,1740101456079,-532.73,0.00015013,2]
[353866853,1740101456091,-729.49,0.00015013,2]
[353866854,1740101456100,-464.78829686,0.00015013,2]
[353866855,1740101456110,-696.74,0.00015013,2]
[353866856,1740101456119,-500.0,0.00015013,2]
[353866857,1740101456131,-500.0,0.00015013,2]
[353866858,1740101456140,-518.52,0.00015013,2]
[353866859,1740101456151,-500.0,0.00015013,2]
[353866860,1740101456160,-500.0,0.00015013,2]
[353866861,1740101456170,-500.0,0.00015013,2]
[353866862,1740101456180,-500.0,0.00015013,2]
[353866863,1740101456189,-844.81,0.00015013,2]
[353866864,1740101456199,-669.95,0.00015013,2]
[353866865,1740101456208,-581.18,0.00015013,2]
[353866866,1740101456218,-500.0,0.00015013,2]
[353866867,1740101456228,-604.66,0.00015013,2]
[353866868,1740101456238,-861.01,0.00015013,2]
[353866869,1740101456247,-1153.96,0.00015013,2]
[353866870,1740101456257,-26974.66,0.00015013,2]
[353866871,1740101456266,-940.45,0.00015013,2]
[353866872,1740101456276,-500.0,0.00015013,2]
[353866873,1740101456287,-576.13,0.00015013,2]
[353866874,1740101456297,-1030.85,0.00015013,2]
[353866875,1740101456307,-1816.64,0.00015013,2]
[353866876,1740101456317,-500.0,0.00015013,2]
[353866877,1740101456326,-1105.71,0.00015013,2]
[353866878,1740101456335,-2436.74,0.00015013,2]
[353866879,1740101456344,-909.18,0.00015013,2]
[353866880,1740101456354,-670.52,0.00015013,2]
[353866881,1740101456364,-4808.21,0.00015013,2]
[353866882,1740101456373,-500.0,0.00015013,2]
[353866883,1740101456383,-2611.25,0.00015013,2]
[353866884,1740101456393,-1451.23,0.00015013,2]
[353866885,1740101456403,-500.0,0.00015013,2]
[353866886,1740101456414,-973.24,0.00015013,2]
[353866887,1740101456424,-822.5,0.00015013,2]
[353866888,1740101456434,-1573.39,0.00015013,2]
[353866889,1740101456444,-2936.2,0.00015013,2]
[353866890,1740101456453,-648.94,0.00015013,2]
[353866891,1740101456463,-1582.51,0.00015013,2]
[353866892,1740101456472,-500.0,0.00015013,2]
[353866893,1740101456481,-1821.05,0.00015013,2]
[353866894,1740101456491,-500.0,0.00015013,2]
[353866895,1740101456500,-1944.03,0.00015013,2]
[353866896,1740101456510,-573.26,0.00015013,2]
[353866897,1740101456520,-500.0,0.00015013,2]
[353866898,1740101456530,-500.0,0.00015013,2]
[353866899,1740101456540,-1419.81,0.00015013,2]
[353866900,1740101456549,-14118.77,0.00015013,2]
[353866901,1740101456558,-697.58,0.00015013,2]
[353866902,1740101456568,-357.28837774,0.00015013,2]
[353866903,1740101456579,-4476.95,0.00015013,2]
[353866904,1740101456588,-1855.42,0.00015013,2]
[353866905,1740101456598,-500.0,0.00015013,2]
[353866906,1740101456607,-500.0,0.00015013,2]
[353866907,1740101456617,-1561.66,0.00015013,2]
[353866908,1740101456626,-1412.3,0.00015013,2]
[353866909,1740101456635,-5338.73,0.00015013,2]
[353866910,1740101456647,-2773.95,0.00015013,2]
[353866911,1740101456656,-818.79,0.00015013,2]
[353866912,1740101456665,-2229.92,0.00015013,2]
[353866913,1740101456675,-22626.47802629,0.00015026,2]
[353866914,1740101456684,-11866.1117743,0.00015049,2]
[353866915,1740101456694,-161.081112,0.00015059,6]
[353866916,1740101456703,-500.0,0.00015095,2]
[353866917,1740101456712,-532.73,0.00015095,2]
[353866918,1740101456722,-729.49,0.00015095,2]
[353866919,1740101456731,-696.74,0.00015095,2]
[353866920,1740101456741,-500.0,0.00015095,2]
[353866921,1740101456750,-500.0,0.00015095,2]
[353866922,1740101456759,-518.52,0.00015095,2]
[353866923,1740101456769,-500.0,0.00015095,2]
[353866924,1740101456778,-500.0,0.00015095,2]
[353866925,1740101456787,-500.0,0.00015095,2]
[353866926,1740101456797,-500.0,0.00015095,2]
[353866927,1740101456806,-844.81,0.00015095,2]
[353866928,1740101456815,-669.95,0.00015095,2]
[353866929,1740101456825,-581.18,0.00015095,2]
[353866930,1740101456834,-500.0,0.00015095,2]
[353866931,1740101456843,-604.66,0.00015095,2]
[353866932,1740101456853,-861.01,0.00015095,2]
[353866933,1740101456862,-1153.96,0.00015095,2]
[353866934,1740101456872,-26974.66,0.00015095,2]
[353866935,1740101456881,-940.45,0.00015095,2]
[353866936,1740101456891,-500.0,0.00015095,2]
[353866937,1740101456901,-576.13,0.00015095,2]
[353866938,1740101456911,-1030.85,0.00015095,2]
[353866939,1740101456920,-1816.64,0.00015095,2]
[353866940,1740101457018,-500.0,0.00015095,2]
[353866941,1740101457028,-1105.71,0.00015095,2]
[353866942,1740101457038,-2436.74,0.00015095,2]
[353866943,1740101457048,-909.18,0.00015095,2]
[353866944,1740101457057,-670.52,0.00015095,2]
[353866945,1740101457067,-4808.21,0.00015095,2]
[353866946,1740101457077,-500.0,0.00015095,2]
[353866947,1740101457090,-2611.25,0.00015095,2]
[353866948,1740101457100,-1451.23,0.00015095,2]
[353866949,1740101457109,-500.0,0.00015095,2]
[353866950,1740101457120,-973.24,0.00015095,2]
[353866951,1740101457130,-822.5,0.00015095,2]
[353866952,1740101457140,-1573.39,0.00015095,2]
[353866953,1740101457150,-2936.2,0.00015095,2]
[353866954,1740101457160,-648.94,0.00015095,2]
[353866955,1740101457170,-1582.51,0.00015095,2]
[353866956,1740101457179,-500.0,0.00015095,2]
[353866957,1740101457189,-1821.05,0.00015095,2]
[353866958,1740101457198,-500.0,0.00015095,2]
[353866959,1740101457208,-1944.03,0.00015095,2]
[353866960,1740101457218,-573.26,0.00015095,2]
[353866961,1740101457228,-500.0,0.00015095,2]
[353866962,1740101457243,-500.0,0.00015095,2]
[353866963,1740101457253,-1419.81,0.00015095,2]
[353866964,1740101457263,-14118.77,0.00015095,2]
[353866965,1740101457273,-697.58,0.00015095,2]
[353866966,1740101457284,-4476.95,0.00015095,2]
[353866967,1740101457294,-1855.42,0.00015095,2]
[353866968,1740101457303,-350.76852935,0.00015095,2]
[353866969,1740101457313,-500.0,0.00015095,2]
[353866970,1740101457322,-1561.66,0.00015095,2]
[353866971,1740101457332,-1412.3,0.00015095,2]
[353866972,1740101457341,-5338.73,0.00015095,2]
[353866973,1740101457351,-2773.95,0.00015095,2]
[353866974,1740101457360,-818.79,0.00015095,2]
[353866975,1740101457370,-2229.92,0.00015095,2]
[353866976,1740101457379,-2000.0,0.000151,2]
[353866977,1740101457389,-622.0,0.000151,2]
[353866978,1740101457399,-9002.72700239,0.00015178,5]
[353866979,1740101457410,-33738.86574847,0.00015178,5]
[353866980,1740101457716,-317.14938451,0.00013698,2]
[353866984,1740102226999,400.0,9.041e-05,2]
[353867047,1740102632323,-1073.36140284,0.00011562,2]
[353867048,1740102632392,-445.14886708,0.00011562,2]
[353867049,1740102632461,-3481.48973008,0.00011562,2]
[353867050,1740102632471,-5000.0,0.00011562,2]
[353867051,1740102632481,-4054.08313355,0.00011562,2]
[353867052,1740102632494,-945.91686645,0.00011562,2]
[353867053,1740102632503,-16.08313355,0.00011562,2]
[353867054,1740102632514,-2499.999995,0.00011562,2]
[353867055,1740102632526,-463.04724669,0.00011562,2]
[353867056,1740102632539,-1931.14892683,0.00011562,2]
[353867057,1740102632551,-89.72069793,0.00011562,2]
[353867058,1740102632560,-284.33296258,0.00011562,2]
[353867060,1740102638238,-4715.66703742,0.00011562,2]
[353867061,1740102638248,-5009.37418888,0.00011756,2]
[353867062,1740102638258,-300.0,0.00013697,2]
[353867063,1740102638268,-215.41906814,0.00013698,2]
[353867064,1740102638278,-500.0,0.00013698,2]
[353867065,1740102638287,-500.0,0.00013698,2]
[353867066,1740102638297,-500.0,0.00013698,2]
[353867067,1740102638307,-500.0,0.00013698,2]
[353867068,1740102638316,-500.0,0.00013698,2]
[353867069,1740102638325,-500.0,0.00013698,2]
[353867070,1740102638335,-500.0,0.00013698,2]
[353867071,1740102638344,-500.0,0.00013698,2]
[353867072,1740102638353,-500.90440795,0.00013698,2]
[353867073,1740102638362,-500.0,0.00013698,2]
[353867074,1740102638372,-500.0,0.00013698,2]
[353867075,1740102638382,-505.99385049,0.00013698,2]
[353867076,1740102638392,-505.0283514,0.00013698,2]
[353867077,1740102638401,-500.0,0.00013698,2]
[353867078,1740102638410,-502.38770418,0.00013698,2]
[353867079,1740102638419,-500.0,0.00013698,2]
[353867080,1740102638428,-504.87719007,0.00013698,2]
[353867081,1740102638437,-528.42,0.00013698,2]
[353867082,1740102638447,-500.0,0.00013698,2]
[353867083,1740102638460,-500.0,0.00013698,2]
[353867084,1740102638469,-1000.0,0.00013698,2]
[353867085,1740102638479,-504.666055,0.00013698,2]
[353867086,1740102638489,-500.0,0.00013698,2]
[353867087,1740102638499,-500.0,0.00013698,2]
[353867088,1740102638508,-500.94384192,0.00013698,2]
[353867089,1740102638517,-506.90499539,0.00013698,2]
[353867090,1740102638527,-503.4046459,0.00013698,2]
[353867091,1740102638537,-500.0,0.00013698,2]
[353867092,1740102638548,-593.02,0.00013698,2]
[353867093,1740102638558,-500.0,0.00013698,2]
[353867094,1740102638568,-500.0,0.00013698,2]
[353867095,1740102638577,-669.5,0.00013698,2]
[353867096,1740102638587,-500.0,0.00013698,2]
[353867097,1740102638596,-500.0,0.00013698,2]
[353867098,1740102638606,-500.0,0.00013698,2]
[353867099,1740102638615,-500.0,0.00013698,2]
[353867100,1740102638625,-500.0,0.00013698,2]
[353867101,1740102638635,-500.0,0.00013698,2]
[353867102,1740102638646,-579.28,0.00013698,2]
[353867103,1740102638656,-500.0,0.00013698,2]
[353867104,1740102638666,-506.09135137,0.00013698,2]
[353867105,1740102638677,-500.0,0.00013698,2]
[353867106,1740102638687,-500.0,0.00013698,2]
[353867107,1740102638698,-505.49796428,0.00013698,2]
[353867108,1740102638709,-500.0,0.00013698,2]
[353867109,1740102638719,-500.0,0.00013698,2]
[353867110,1740102638729,-505.06972063,0.00013698,2]
[353867111,1740102638740,-500.0,0.00013698,2]
[353867112,1740102638749,-506.24042637,0.00013698,2]
[353867113,1740102638759,-500.0,0.00013698,2]
[353867114,1740102638769,-500.0,0.00013698,2]
[353867115,1740102638778,-500.0,0.00013698,2]
[353867116,1740102638796,-501.17249632,0.00013698,2]
[353867117,1740102638810,-500.0,0.00013698,2]
[353867118,1740102638820,-500.0,0.00013698,2]
[353867119,1740102638829,-506.05889052,0.00013698,2]
[353867120,1740102638839,-500.71003951,0.00013698,2]
[353867121,1740102638851,-500.0,0.00013698,2]
[353867122,1740102638861,-502.76172559,0.00013698,2]
[353867123,1740102638872,-501.25204282,0.00013698,2]
[353867124,1740102638881,-500.0,0.00013698,2]
[353867125,1740102638891,-231.37408552,0.00013698,2]
[353867126,1740102638903,-504.12576248,0.00013698,2]
[353867127,1740102638913,-244.76430313,0.00013698,2]
[353867128,1740102638923,-500.58179345,0.00013698,2]
[353867129,1740102638933,-500.0,0.00013698,2]
[353867130,1740102638942,-500.0,0.00013698,2]
[353867131,1740102638952,-500.0,0.00013698,2]
[353867132,1740102638963,-500.0,0.00013698,2]
[353867133,1740102638973,-500.0097318,0.00013698,2]
[353867134,1740102638983,-505.2701718,0.00013698,2]
[353867135,1740102638993,-503.06733579,0.00013698,2]
[353867136,1740102639003,-501.50363282,0.00013698,2]
[353867137,1740102639013,-500.0,0.00013698,2]
[353867138,1740102639023,-508.14630445,0.00013698,2]
[353867139,1740102639032,-500.0,0.00013698,2]
[353867140,1740102639043,-501.82646149,0.00013698,2]
[353867141,1740102639053,-580.73720256,0.00013698,2]
[353867142,1740102639063,-504.50930878,0.00013698,2]
[353867143,1740102639073,-19027.53,0.00013698,2]
[353867144,1740102639083,-550.18859288,0.00013698,2]
[353867145,1740102639093,-770.37,0.00013698,2]
[353867146,1740102639103,-500.0,0.00013698,2]
[353867147,1740102639113,-502.47852398,0.00013698,2]
[353867148,1740102639123,-502.59844106,0.00013698,2]
[353867149,1740102639133,-500.0,0.00013698,2]
[353867150,1740102639144,-504.46166821,0.00013698,2]
[353867151,1740102639154,-627.86,0.00013698,2]
[353867152,1740102639163,-501.73408496,0.00013698,2]
[353867153,1740102639173,-1278.28,0.00013698,2]
[353867154,1740102639183,-500.0,0.00013698,2]
[353867155,1740102639192,-500.78544856,0.00013698,2]
[353867156,1740102639203,-500.0,0.00013698,2]
[353867157,1740102639212,-500.0,0.00013698,2]
[353867158,1740102639222,-500.44771111,0.00013698,2]
[353867159,1740102639232,-500.0,0.00013698,2]
[353867160,1740102639241,-606.91,0.00013698,2]
[353867161,1740102639251,-644.98,0.00013698,2]
[353867162,1740102639261,-1136.87,0.00013698,2]
[353867163,1740102639271,-504.99505626,0.00013698,2]
[353867164,1740102639281,-738.12,0.00013698,2]
[353867165,1740102639290,-500.0,0.00013698,2]
[353867166,1740102639300,-1525.06,0.00013698,2]
[353867167,1740102639310,-500.0,0.00013698,2]
[353867168,1740102639320,-3009.11,0.00013698,2]
[353867169,1740102639330,-501.75896695,0.00013698,2]
[353867170,1740102639340,-500.59685916,0.00013698,2]
[353867171,1740102639350,-500.0,0.00013698,2]
[353867172,1740102639360,-505.26746628,0.00013698,2]
[353867173,1740102639370,-500.0,0.00013698,2]
[353867174,1740102639380,-631.8195464,0.00013698,2]
[353867175,1740102639391,-500.75136998,0.00013698,2]
[353867176,1740102639402,-500.7892689,0.00013698,2]
[353867177,1740102639411,-503.84253367,0.00013698,2]
[353867178,1740102639421,-984.37,0.00013698,2]
[353867179,1740102639431,-1851.91,0.00013698,2]
[353867180,1740102639440,-501.13972508,0.00013698,2]
[353867181,1740102639450,-500.84891397,0.00013698,2]
[353867182,1740102639464,-1029.11,0.00013698,2]
[353867183,1740102639475,-1289.91,0.00013698,2]
[353867184,1740102639486,-501.57608995,0.00013698,2]
[353867185,1740102639500,-500.0,0.00013698,2]
[353867186,1740102639517,-649.72,0.00013698,2]
[353867187,1740102639528,-503.96241802,0.00013698,2]
[353867188,1740102639538,-500.75184604,0.00013698,2]
[353867189,1740102639548,-500.0,0.00013698,2]
[353867190,1740102639558,-549.03,0.00013698,2]
[353867191,1740102639568,-504.04077988,0.00013698,2]
[353867192,1740102639579,-523.56782558,0.00013698,2]
[353867193,1740102639588,-500.0,0.00013698,2]
[353867194,1740102639598,-1959.61,0.00013698,2]
[353867195,1740102639608,-1056.1,0.00013698,2]
[353867196,1740102639618,-500.0,0.00013698,2]
[353867197,1740102639627,-500.0,0.00013698,2]
[353867198,1740102639638,-500.0,0.00013698,2]
[353867199,1740102639648,-10010.78,0.00013698,2]
[353867200,1740102639658,-500.0,0.00013698,2]
[353867201,1740102639671,-500.0,0.00013698,2]
[353867202,1740102639680,-1378.28,0.00013698,2]
[353867203,1740102639690,-500.0,0.00013698,2]
[353867204,1740102639699,-1480.71,0.00013698,2]
[353867205,1740102639709,-500.0,0.00013698,2]
[353867206,1740102639718,-500.0,0.00013698,2]
[353867207,1740102639728,-1065.74,0.00013698,2]
[353867208,1740102639737,-1000.37,0.00013698,2]
[353867209,1740102639747,-500.0,0.00013698,2]
[353867210,1740102639756,-500.0,0.00013698,2]
[353867211,1740102639766,-500.0,0.00013698,2]
[353867213,1740102639776,-500.0,0.00013698,2]
[353867215,1740102639785,-500.0,0.00013698,2]
[353867217,1740102639794,-500.0,0.00013698,2]
[353867219,1740102639803,-506.0,0.00013698,2]
[353867221,1740102639813,-500.0,0.00013698,2]
[353867222,1740102639823,-3174.19,0.00013698,2]
[353867223,1740102639832,-500.0,0.00013698,2]
[353867224,1740102639843,-500.0,0.00013698,2]
[353867225,1740102639853,-1198.02,0.00013698,2]
[353867226,1740102639863,-8694.18,0.00013698,2]
[353867227,1740102639873,-4090.8,0.00013698,2]
[353867228,1740102639883,-500.0,0.00013698,2]
[353867229,1740102639893,-168.53544509,0.00013698,2]
[353867230,1740102639902,-682.32,0.00013698,2]
[353867231,1740102639912,-1964.88,0.00013698,2]
[353867232,1740102639922,-625.43,0.00013698,2]
[353867233,1740102639932,-500.0,0.00013698,2]
[353867234,1740102639941,-1703.3,0.00013698,2]
[353867235,1740102639951,-500.0,0.00013698,2]
[353867236,1740102639960,-500.0,0.00013698,2]
[353867237,1740102639970,-165.6535965,0.00013699,2]
[353867238,1740102639980,-164.612171,0.00013699,2]
[353867239,1740102639990,-500.0,0.00013699,2]
[353867240,1740102640000,-500.0,0.00013699,2]
[353867241,1740102640009,-500.0,0.00013699,2]
[353867242,1740102640019,-500.0,0.00013699,2]
[353867243,1740102640028,-170.14222711,0.00013699,2]
[353867244,1740102640037,-38682.0601711,0.00013763,2]
[353867245,1740102640047,-500.0,0.0001378,2]
[353867246,1740102640057,-500.0,0.0001378,2]
[353867247,1740102640066,-500.0,0.0001378,2]
[353867248,1740102640076,-500.0,0.0001378,2]
[353867249,1740102640085,-500.0,0.0001378,2]
[353867250,1740102640095,-500.0,0.0001378,2]
[353867251,1740102640105,-500.0,0.0001378,2]
[353867252,1740102640114,-500.24904968,0.0001378,2]
[353867253,1740102640124,-500.0,0.0001378,2]
[353867254,1740102640133,-487.08411756,0.0001378,2]
[353867255,1740102640143,-500.0,0.0001378,2]
[353867258,1740102640302,-500.0,0.0001378,2]
[353867259,1740102640312,-528.42,0.0001378,2]
[353867260,1740102640322,-500.0,0.0001378,2]
[353867262,1740102640332,-500.0,0.0001378,2]
[353867264,1740102640341,-1003.06425505,0.0001378,2]
[353867265,1740102640352,-500.0,0.0001378,2]
[353867266,1740102640364,-500.0,0.0001378,2]
[353867267,1740102640373,-500.0,0.0001378,2]
[353867269,1740102640382,-593.02,0.0001378,2]
[353867270,1740102640392,-500.0,0.0001378,2]
[353867271,1740102640402,-500.0,0.0001378,2]
[353867272,1740102640411,-669.5,0.0001378,2]
[353867273,1740102640420,-500.0,0.0001378,2]
[353867274,1740102640430,-500.0,0.0001378,2]
[353867275,1740102640439,-500.0,0.0001378,2]
[353867276,1740102640449,-500.0,0.0001378,2]
[353867277,1740102640460,-505.39291266,0.0001378,2]
[353867278,1740102640471,-500.0,0.0001378,2]
[353867279,1740102640481,-579.28,0.0001378,2]
[353867280,1740102640490,-500.0,0.0001378,2]
[353867281,1740102640500,-500.0,0.0001378,2]
[353867282,1740102640510,-322.90528435,0.0001378,2]
[353867283,1740102640521,-507.42087559,0.0001378,2]
[353867284,1740102640531,-500.0,0.0001378,2]
[353867285,1740102640542,-507.34246424,0.0001378,2]
[353867286,1740102640551,-500.0,0.0001378,2]
[353867287,1740102640561,-500.0,0.0001378,2]
[353867288,1740102640571,-500.0,0.0001378,2]
[353867289,1740102640579,-500.0,0.0001378,2]
[353867290,1740102640589,-500.0,0.0001378,2]
[353867291,1740102640598,-500.0,0.0001378,2]
[353867292,1740102640607,-506.82130812,0.0001378,2]
[353867293,1740102640617,-500.0,0.0001378,2]
[353867294,1740102640627,-500.0,0.0001378,2]
[353867295,1740102640636,-500.0,0.0001378,2]
[353867296,1740102640646,-500.0,0.0001378,2]
[353867297,1740102640655,-500.0,0.0001378,2]
[353867298,1740102640664,-500.0,0.0001378,2]
[353867299,1740102640674,-19027.53,0.0001378,2]
[353867300,1740102640683,-770.37,0.0001378,2]
[353867301,1740102640692,-500.0,0.0001378,2]
[353867302,1740102640702,-627.86,0.0001378,2]
[353867303,1740102640711,-1278.28,0.0001378,2]
[353867304,1740102640722,-500.0,0.0001378,2]
[353867305,1740102640731,-500.0,0.0001378,2]
[353867306,1740102640741,-500.0,0.0001378,2]
[353867307,1740102640751,-500.0,0.0001378,2]
[353867308,1740102640760,-606.91,0.0001378,2]
[353867309,1740102640770,-644.98,0.0001378,2]
[353867310,1740102640779,-1136.87,0.0001378,2]
[353867311,1740102640789,-738.12,0.0001378,2]
[353867312,1740102640798,-500.0,0.0001378,2]
[353867313,1740102640808,-1525.06,0.0001378,2]
[353867314,1740102640817,-500.0,0.0001378,2]
[353867315,1740102640827,-3009.11,0.0001378,2]
[353867316,1740102640837,-500.0,0.0001378,2]
[353867317,1740102640847,-500.0,0.0001378,2]
[353867318,1740102640858,-984.37,0.0001378,2]
[353867319,1740102640867,-1851.91,0.0001378,2]
[353867320,1740102640877,-1029.11,0.0001378,2]
[353867321,1740102640886,-1289.91,0.0001378,2]
[353867322,1740102640896,-500.0,0.0001378,2]
[353867323,1740102640906,-649.72,0.0001378,2]
[353867324,1740102640915,-500.0,0.0001378,2]
[353867325,1740102640925,-549.03,0.0001378,2]
[353867326,1740102640934,-500.0,0.0001378,2]
[353867327,1740102640943,-1959.61,0.0001378,2]
[353867328,1740102640953,-1056.1,0.0001378,2]
[353867329,1740102640963,-500.0,0.0001378,2]
[353867330,1740102640972,-500.0,0.0001378,2]
[353867331,1740102640981,-500.0,0.0001378,2]
[353867332,1740102640990,-10010.78,0.0001378,2]
[353867333,1740102640999,-500.0,0.0001378,2]
[353867334,1740102641010,-500.0,0.0001378,2]
[353867335,1740102641020,-1378.28,0.0001378,2]
[353867336,1740102641030,-500.0,0.0001378,2]
[353867337,1740102641040,-1480.71,0.0001378,2]
[353867338,1740102641051,-500.0,0.0001378,2]
[353867339,1740102641061,-500.0,0.0001378,2]
[353867340,1740102641070,-1065.74,0.0001378,2]
[353867341,1740102641080,-1000.37,0.0001378,2]
[353867342,1740102641089,-500.0,0.0001378,2]
[353867343,1740102641099,-500.0,0.0001378,2]
[353867344,1740102641108,-500.0,0.0001378,2]
[353867345,1740102641117,-500.0,0.0001378,2]
[353867346,1740102641126,-500.0,0.0001378,2]
[353867347,1740102641135,-500.0,0.0001378,2]
[353867348,1740102641145,-216.07203135,0.0001378,2]
[353867349,1740102641154,-3174.19,0.0001378,2]
[353867350,1740102641163,-500.0,0.0001378,2]
[353867351,1740102641172,-500.0,0.0001378,2]
[353867352,1740102641182,-1198.02,0.0001378,2]
[353867353,1740102641191,-8694.18,0.0001378,2]
[353867354,1740102641200,-4090.8,0.0001378,2]
[353867355,1740102641210,-500.0,0.0001378,2]
[353867356,1740102641219,-682.32,0.0001378,2]
[353867357,1740102641229,-1964.88,0.0001378,2]
[353867358,1740102641239,-625.43,0.0001378,2]
[353867359,1740102641249,-500.0,0.0001378,2]
[353867360,1740102641258,-1703.3,0.0001378,2]
[353867361,1740102641268,-500.0,0.0001378,2]
[353867362,1740102641277,-1000.0,0.000138,2]
[353867363,1740102641287,-1000.0,0.000138,3]
[353867364,1740102641296,-500.0,0.00013863,2]
[353867365,1740102641305,-505.74795089,0.00013863,2]
[353867366,1740102641315,-500.0,0.00013863,2]
[353867367,1740102641324,-508.18143835,0.00013863,2]
[353867368,1740102641333,-500.0,0.00013863,2]
[353867369,1740102641343,-500.0,0.00013863,2]
[353867370,1740102641353,-508.24773107,0.00013863,2]
[353867371,1740102641363,-507.11130393,0.00013863,2]
[353867372,1740102641372,-500.0,0.00013863,2]
[353867373,1740102641382,-500.0,0.00013863,2]
[353867374,1740102641391,-528.42,0.00013863,2]
[353867375,1740102641401,-625.66626844,0.00013863,2]
[353867376,1740102641410,-500.0,0.00013863,2]
[353867377,1740102641419,-500.0,0.00013863,2]
[353867378,1740102641429,-500.0,0.00013863,2]
[353867379,1740102641440,-357.65815289,0.00013863,2]
[353867380,1740102641452,-593.02,0.00013863,2]
[353867381,1740102641466,-500.0,0.00013863,2]
[353867382,1740102641475,-500.0,0.00013863,2]
[353867383,1740102641484,-669.5,0.00013863,2]
[353867384,1740102641494,-500.0,0.00013863,2]
[353867385,1740102641503,-500.0,0.00013863,2]
[353867386,1740102641514,-505.80932262,0.00013863,2]
[353867387,1740102641523,-500.0,0.00013863,2]
[353867388,1740102641532,-500.0,0.00013863,2]
[353867389,1740102641543,-579.28,0.00013863,2]
[353867390,1740102641553,-500.0,0.00013863,2]
[353867391,1740102641563,-500.0,0.00013863,2]
[353867392,1740102641573,-500.0,0.00013863,2]
[353867393,1740102641582,-500.0,0.00013863,2]
[353867394,1740102641592,-500.0,0.00013863,2]
[353867395,1740102641601,-500.0,0.00013863,2]
[353867396,1740102641611,-500.0,0.00013863,2]